bitfinex-derivatives/quotes_SOLF0:USTF0_20250928
["timestamp","ask_amount","ask_price","bid_price","bid_amount"]
[1759052497926,7.96,201.53,201.45,1.38825319]
[1759052499627,7.96,201.53,201.44,12.1153]
[1759052499821,7.96,201.53,201.45,1.38825319]
[1759052500328,12.4237,201.53,201.45,1.38825319]
[1759052502032,7.96,201.51,201.44,9.03825319]
[1759052503634,4.4639,201.52,201.4,9.03825319]
[1759052503635,7.96,201.49,201.4,9.03825319]
[1759052504633,12.4244,201.49,201.4,9.03825319]
[1759052506637,13.81265319,201.49,201.4,9.03825319]
[1759052508741,13.81265319,201.49,201.4,13.50445319]
[1759052512743,7.96,201.59,201.47,1.38825319]
[1759052512940,7.96,201.56,201.47,1.38825319]
[1759052513335,7.96,201.56,201.47,5.85295319]
[1759052514242,7.96,201.56,201.48,7.84]
[1759052515536,7.96,201.56,201.49,4.4642]
[1759052515733,7.96,201.56,201.48,7.84]
[1759052516645,7.96,201.56,201.5,4.464]
[1759052516842,7.96,201.56,201.5,12.304]
[1759052523748,7.96,201.56,201.51,4.4638]
[1759052524050,9.22825319,201.57,201.5,7.84]
[1759052524250,7.84,201.57,201.5,12.304]
[1759052525151,1.38825319,201.56,201.48,4.4646]
[1759052525445,69.4059,201.61,201.48,4.4646]
[1759052525446,7.84,201.53,201.48,4.4646]
[1759052525646,1.38825319,201.54,201.48,4.4646]
[1759052525852,7.84,201.53,201.48,4.4646]
[1759052526050,9.22825319,201.54,201.48,4.4646]
[1759052526553,12.3034,201.54,201.48,12.3046]
[1759052528045,4.4636,201.53,201.48,7.84]
[1759052528251,7.84,201.53,201.46,121.38]
[1759052528452,7.84,201.53,201.45,7.84]
[1759052529049,4.4639,201.52,201.46,4.4649]
[1759052530150,7.84,201.53,201.47,12.2646]
[1759052531446,12.3036,201.53,201.47,12.2646]
[1759052531646,7.84,201.53,201.47,12.2646]
[1759052532543,4.4638,201.52,201.47,12.2646]
[1759052532741,12.1738,201.52,201.48,7.8]
[1759052533150,12.174,201.51,201.45,12.2651]
[1759052533350,7.71,201.51,201.42,112.60825319]
[1759052533552,7.71,201.51,201.42,130.56825319]
[1759052533746,7.71,201.51,201.42,129.18]
[1759052533947,4.4645,201.49,201.43,4.4657]
[1759052534144,7.71,201.51,201.42,129.16]
[1759052534752,12.174,201.51,201.45,4.4652]
[1759052534953,7.71,201.51,201.45,4.4652]
[1759052535649,9.09825319,201.51,201.45,4.4652]
[1759052536244,4.4643,201.5,201.43,4.4656]
[1759052536448,4.4643,201.5,201.42,130.54825319]
[1759052536748,4.4643,201.5,201.45,4.4651]
[1759052536955,4.4638,201.52,201.45,7.8]
[1759052537654,7.71,201.54,201.44,122.70825319]
[1759052537655,12.1734,201.54,201.47,7.8]
[1759052538349,3.4355421,201.53,201.47,7.8]
[1759052538551,12.1734,201.54,201.49,4.4642]
[1759052538750,3.4355421,201.53,201.5,7.8]
[1759052538950,12.1734,201.54,201.5,7.8]
[1759052539152,3.4355421,201.53,201.5,7.8]
[1759052539355,12.1734,201.54,201.5,7.8]
[1759052539553,3.43609945,201.53,201.5,7.8]
[1759052539755,12.1734,201.54,201.5,7.8]
[1759052539954,3.43609945,201.53,201.5,7.8]
[1759052540258,12.1734,201.54,201.5,7.8]
[1759052540459,3.4360627,201.53,201.5,7.8]
[1759052540756,12.1734,201.54,201.5,7.8]
[1759052540956,3.4360627,201.53,201.5,7.8]
[1759052541165,12.1734,201.54,201.5,7.8]
[1759052541365,7.71,201.52,201.45,4.4652]
[1759052542063,4.4643,201.5,201.44,7.8]
[1759052542265,1.38825319,201.51,201.44,7.8]
[1759052542465,11.14572495,201.5,201.44,7.8]
[1759052542664,7.71,201.48,201.44,7.8]
[1759052542866,7.71,201.5,201.41,12.2661]
[1759052543064,7.71,201.48,201.41,12.2661]
[1759052543668,12.1747,201.48,201.41,12.2661]
[1759052548569,4.4649,201.47,201.41,12.2661]
[1759052551786,77.5734,201.5,201.41,7.8]
[1759052552075,77.5734,201.5,201.38,22.04303624]
[1759052552076,8.13,201.48,201.38,22.04303624]
[1759052552271,8.13,201.46,201.38,54.57]
[1759052552469,8.13,201.43,201.36,11.8571]
[1759052552673,8.13,201.43,201.36,128.73]
[1759052553577,4.4663,201.41,201.36,121.34]
[1759052554076,4.4663,201.41,201.37,7.39]
[1759052554277,4.4663,201.41,201.36,121.34]
[1759052554666,8.13,201.48,201.37,7.39]
[1759052554976,8.13,201.52,201.39,7.39]
[1759052555170,3.43566903,201.51,201.39,7.39]
[1759052555369,4.4646,201.49,201.43,7.39]
[1759052556176,12.5946,201.49,201.43,7.39]
[1759052557272,8.13,201.47,201.43,7.39]
[1759052559975,8.13,201.5,201.37,7.39]
[1759052560174,75.05111013,201.49,201.38,47.06]
[1759052560478,8.13,201.47,201.38,47.06]
[1759052560667,8.13,201.48,201.38,47.06]
[1759052560869,3.43499389,201.47,201.38,47.06]
[1759052561079,8.13,201.46,201.38,47.06]
[1759052561579,4.4656,201.44,201.38,47.06]
[1759052562272,4.4656,201.44,201.39,7.39]
[1759052562475,4.4656,201.44,201.38,47.06]
[1759052562779,4.4656,201.44,201.38,7.39]
[1759052562982,4.4656,201.44,201.38,128.75]
[1759052566989,4.4656,201.44,201.38,133.2167]
[1759052568485,12.5952,201.46,201.4,4.4662]
[1759052568682,12.5952,201.46,201.41,7.39]
[1759052569583,12.5952,201.46,201.4,4.4662]
[1759052569782,12.5952,201.46,201.41,7.39]
[1759052569978,12.5952,201.46,201.38,121.36]
[1759052570185,8.13,201.46,201.39,7.39]
[1759052571786,4.4656,201.44,201.38,125.8267]
[1759052572086,4.4656,201.44,201.39,7.39]
[1759052572281,4.4656,201.44,201.4,7.39]
[1759052572689,4.4656,201.44,201.39,121.28]
[1759052572880,4.4656,201.44,201.4,7.39]
[1759052573077,4.4656,201.44,201.41,7.39]
[1759052575789,11.9558,201.43,201.38,4.4667]
[1759052575992,7.49,201.45,201.36,7.43]
[1759052576190,71.62569566,201.46,201.36,7.43]
[1759052576191,7.49,201.43,201.36,7.43]
[1759052576589,4.4665,201.4,201.35,121.96214989]
[1759052577192,4.4665,201.4,201.36,7.43]
[1759052577392,11.9567,201.39,201.36,7.43]
[1759052577686,7.49,201.38,201.35,129.37214989]
[1759052578490,11.9569,201.38,201.35,8.13214989]
[1759052580194,7.49,201.38,201.35,8.13214989]
[1759052580494,11.9565,201.4,201.36,7.43]
[1759052580695,4.4667,201.39,201.36,7.43]
[1759052580888,11.9567,201.39,201.36,7.43]
[1759052581693,7.49,201.41,201.35,0.70214989]
[1759052581993,69.4728,201.42,201.32,22.3852645]
[1759052581994,7.49,201.39,201.32,47.8]
[1759052582493,7.49,201.39,201.33,7.43]
[1759052583290,11.9567,201.39,201.33,7.43]
[1759052583892,4.4662,201.41,201.34,7.43]
[1759052585692,7.49,201.42,201.34,7.43]
[1759052586599,4.4662,201.41,201.34,7.43]
[1759052587892,4.4662,201.41,201.34,57.25]
[1759052588291,4.4665,201.4,201.34,57.25]
[1759052589798,4.4665,201.4,201.34,61.7176]
[1759052590194,11.956,201.42,201.35,7.59]
[1759052590398,4.466,201.42,201.36,4.4672]
[1759052591193,4.4663,201.41,201.34,49.82]
[1759052591397,4.4663,201.41,201.38,7.59]
[1759052593002,4.4663,201.41,201.35,28.36]
[1759052593494,4.4663,201.41,201.36,7.59]
[1759052593693,4.4663,201.41,201.35,28.36]
[1759052594199,4.4658,201.43,201.37,7.59]
[1759052599095,4.466,201.42,201.36,4.4672]
[1759052599295,12.356,201.42,201.36,4.4672]
[1759052599502,4.466,201.42,201.36,12.0572]
[1759052601201,4.466,201.42,201.36,4.4672]
[1759052601402,4.466,201.42,201.37,7.59]
[1759052601696,4.466,201.42,201.36,4.4672]
[1759052602200,4.466,201.42,201.37,7.59]
[1759052602401,4.466,201.42,201.37,12.057]
[1759052602601,4.466,201.42,201.37,4.467]
[1759052602799,7.89,201.43,201.35,7.59]
[1759052603098,7.89,201.47,201.36,7.59]
[1759052603298,3.43099057,201.46,201.36,7.59]
[1759052603502,7.89,201.47,201.36,7.59]
[1759052603802,3.43143457,201.46,201.36,7.59]
[1759052604002,7.89,201.47,201.36,7.59]
[1759052604202,3.43143457,201.46,201.36,7.59]
[1759052604396,7.89,201.47,201.36,7.59]
[1759052604597,7.89686883,201.46,201.4,4.4663]
[1759052604901,4.4651,201.46,201.4,12.3863]
[1759052605302,3.43183992,201.45,201.4,4.4663]
[1759052605499,7.42,201.45,201.4,4.4663]
[1759052605699,7.42,201.45,201.41,7.92]
[1759052606003,7.42,201.45,201.4,4.4663]
[1759052606302,7.42,201.45,201.41,7.92]
[1759052606503,7.42,201.45,201.4,4.4663]
[1759052607103,7.42,201.45,201.41,7.92]
[1759052607304,7.42,201.45,201.4,4.4663]
[1759052607502,7.42,201.45,201.41,7.92]
[1759052607896,7.42,201.45,201.4,4.4663]
[1759052608299,7.42,201.45,201.41,7.92]
[1759052608997,7.42,201.45,201.4,4.4663]
[1759052609201,7.42,201.44,201.38,6.63469566]
[1759052609406,7.42,201.44,201.38,12.3868]
[1759052609600,69.4513,201.48,201.38,12.3868]
[1759052609800,3.43208986,201.47,201.38,12.3868]
[1759052609995,7.42,201.45,201.38,12.3868]
[1759052610197,7.42,201.47,201.38,12.3868]
[1759052610499,3.43225267,201.46,201.38,12.3868]
[1759052610698,4.4658,201.43,201.38,12.3868]
[1759052610904,7.42,201.42,201.39,7.92]
[1759052611698,7.42,201.42,201.39,4.4665]
[1759052611900,7.42,201.42,201.4,7.92]
[1759052616203,7.42,201.42,201.37,5.8549281]
[1759052617410,7.42,201.42,201.38,12.3868]
[1759052617709,7.42,201.42,201.39,7.92]
[1759052619106,7.42,201.41,201.35,7.92]
[1759052620617,4.4667,201.39,201.35,7.92]
[1759052620914,7.42,201.38,201.35,7.92]
[1759052621713,4.4667,201.39,201.35,7.92]
[1759052621906,11.8863,201.41,201.36,7.92]
[1759052622507,4.4658,201.43,201.36,7.92]
[1759052623716,11.8858,201.43,201.39,7.92]
[1759052625311,4.4658,201.43,201.39,7.92]
[1759052625505,11.886,201.42,201.36,4.4672]
[1759052626715,4.4662,201.41,201.35,7.92]
[1759052628218,4.4665,201.4,201.35,7.92]
[1759052628720,7.42,201.39,201.35,7.92]
[1759052629218,4.4665,201.4,201.35,7.92]
[1759052629619,7.42,201.39,201.35,7.92]
[1759052629816,4.4665,201.4,201.35,7.92]
[1759052630017,7.42,201.39,201.35,7.92]
[1759052631520,4.4665,201.4,201.35,7.92]
[1759052631722,7.42,201.39,201.35,7.92]
[1759052632622,4.4665,201.4,201.35,7.92]
[1759052632823,7.42,201.39,201.35,7.92]
[1759052634123,7.42,201.39,201.35,4.4674]
[1759052634422,7.42,201.39,201.36,7.93]
[1759052636730,7.59,201.4,201.36,7.93]
[1759052637232,4.4663,201.41,201.36,7.93]
[1759052637429,4.4665,201.4,201.33,4.4678]
[1759052637633,12.0565,201.4,201.34,7.93]
[1759052638735,12.0565,201.4,201.34,12.3976]
[1759052640236,4.4667,201.39,201.34,12.3976]
[1759052640440,7.59,201.38,201.35,7.93]
[1759052640933,4.4669,201.38,201.32,5.8561281]
[1759052641240,7.59,201.37,201.3,15.00738359]
[1759052641428,7.59,201.37,201.29,129.15]
[1759052641634,5.54056139,201.45,201.3,1.3880281]
[1759052641833,69.4448,201.5,201.38,7.93]
[1759052641834,11.02868195,201.44,201.38,7.93]
[1759052642137,7.59,201.44,201.38,12.3967]
[1759052642634,7.59,201.44,201.38,7.93]
[1759052644238,4.466,201.42,201.38,7.93]
[1759052644538,7.59,201.41,201.38,7.93]
[1759052649941,13.8436281,201.44,201.38,7.93]
[1759052650144,12.4556,201.44,201.38,12.3967]
[1759052651445,12.4556,201.44,201.39,4.4665]
[1759052651641,12.4556,201.44,201.4,7.35]
[1759052652847,4.4656,201.44,201.4,7.35]
[1759052653147,7.99,201.43,201.4,7.35]
[1759052658350,12.4558,201.43,201.37,7.35]
[1759052658649,12.4558,201.43,201.37,128.55]
[1759052659150,7.99,201.42,201.39,7.35]
[1759052665754,1.3880281,201.46,201.4,7.38]
[1759052665955,11.09301428,201.45,201.39,11.8465]
[1759052666150,7.65,201.43,201.4,7.38]
[1759052672958,7.65,201.48,201.38,69.4846]
[1759052673152,7.65,201.48,201.39,7.38]
[1759052673353,2.16861768,201.54,201.4,121.16]
[1759052673354,7.65,201.53,201.4,121.16]
[1759052673656,7.65,201.51,201.41,121.16]
[1759052673851,3.44321284,201.5,201.42,7.38]
[1759052674054,7.90771284,201.49,201.43,4.4656]
[1759052674354,7.90771284,201.49,201.42,7.38]
[1759052674355,3.44241354,201.48,201.42,7.38]
[1759052674557,7.65,201.49,201.42,7.38]
[1759052674855,3.44230473,201.48,201.42,7.38]
[1759052675059,7.65,201.49,201.42,7.38]
[1759052675257,7.65,201.47,201.35,7.38]
[1759052675561,7.65,201.45,201.37,7.38]
[1759052675959,7.65,201.44,201.39,4.4665]
[1759052676159,7.65,201.47,201.38,7.38]
[1759052676358,7.65,201.47,201.38,121.16]
[1759052676660,7.65,201.47,201.39,7.38]
[1759052677558,4.4652,201.46,201.4,4.4663]
[1759052679457,4.4652,201.46,201.41,4.466]
[1759052679651,12.1152,201.46,201.41,4.466]
[1759052680261,7.65,201.45,201.42,7.38]
[1759052682766,12.1153,201.45,201.42,7.38]
[1759052684166,7.65,201.45,201.42,7.38]
[1759052685063,2.16861768,201.5,201.42,7.38]
[1759052685262,11.11309177,201.49,201.42,7.38]
[1759052685458,3.46309177,201.48,201.42,7.38]
[1759052685655,7.65,201.45,201.42,7.38]
[1759052687160,7.65,201.44,201.39,121.14]
[1759052687763,7.65,201.44,201.4,7.38]
[1759052687962,7.65,201.44,201.35,7.38]
[1759052688463,71.62271768,201.47,201.35,90.6]
[1759052688464,3.46435923,201.43,201.35,90.6]
[1759052688657,4.466,201.42,201.36,4.4672]
[1759052688858,7.65,201.42,201.36,4.4672]
[1759052689570,4.4663,201.41,201.36,4.4672]
[1759052689770,12.1163,201.41,201.37,7.38]
[1759052691364,12.1163,201.41,201.36,4.4672]
[1759052691672,12.1163,201.41,201.37,7.38]
[1759052691972,7.65,201.41,201.37,4.467]
[1759052692174,7.65,201.41,201.38,7.38]
[1759052693872,7.59,201.44,201.36,121.12]
[1759052694078,3.46447005,201.43,201.37,121.12]
[1759052694273,7.59,201.44,201.38,7.68]
[1759052694575,3.46462433,201.43,201.34,7.68]
[1759052694775,12.0554,201.45,201.36,7.68]
[1759052694975,3.46462433,201.44,201.36,7.68]
[1759052695175,3.46462433,201.43,201.36,7.68]
[1759052695376,12.0554,201.45,201.36,7.68]
[1759052695578,3.46462171,201.44,201.39,4.4665]
[1759052695777,3.46462171,201.43,201.4,7.68]
[1759052696083,7.59,201.44,201.4,7.68]
[1759052696283,4.4654,201.45,201.4,7.68]
[1759052696480,7.59,201.43,201.4,7.68]
[1759052697777,7.59,201.43,201.4,12.1463]
[1759052698183,7.59,201.43,201.4,4.4663]
[1759052698384,7.59,201.43,201.4,12.1463]
[1759052698678,7.59,201.43,201.41,7.68]
[1759052699286,7.59,201.45,201.41,7.68]
[1759052699884,4.465,201.47,201.41,7.68]
[1759052700087,7.59,201.45,201.41,7.68]
[1759052700391,7.59,201.45,201.42,7.68]
[1759052700679,4.465,201.47,201.42,7.68]
[1759052700881,3.46490317,201.46,201.43,7.68]
[1759052701078,7.59,201.46,201.43,7.68]
[1759052701374,11.05488166,201.45,201.43,7.68]
[1759052701579,7.59,201.45,201.41,7.68]
[1759052701784,4.4651,201.46,201.41,7.68]
[1759052701985,7.59,201.44,201.35,7.68]
[1759052702281,3.46520753,201.45,201.35,7.68]
[1759052702282,7.59,201.42,201.35,7.68]
[1759052703185,7.59,201.44,201.35,4.4674]
[1759052703387,7.59,201.42,201.35,12.1474]
[1759052703888,4.4662,201.41,201.35,12.1474]
[1759052706494,7.59,201.39,201.35,7.68]
[1759052706789,7.59,201.37,201.27,7.68]
[1759052706989,72.94882323,201.38,201.22,8.37004422]
[1759052706990,7.59,201.34,201.22,8.37004422]
[1759052707188,69.4957,201.35,201.23,7.68]
[1759052707189,7.59,201.32,201.23,7.68]
[1759052707587,7.59,201.32,201.24,4.4698]
[1759052708589,4.4685,201.31,201.24,4.4698]
[1759052708794,7.59,201.32,201.25,7.68]
[1759052714495,7.88,201.32,201.22,22.85427118]
[1759052714698,7.88,201.32,201.22,8.13]
[1759052715587,4.4688,201.3,201.22,8.13]
[1759052715796,7.88,201.29,201.22,8.13]
[1759052716599,7.88,201.32,201.24,8.13]
[1759052716897,7.88,201.32,201.24,121.16]
[1759052717093,7.88,201.32,201.25,8.13]
[1759052717794,2.16861768,201.33,201.22,77.53]
[1759052718000,7.88,201.32,201.22,8.13]
[1759052718690,7.88,201.29,201.22,12.6002]
[1759052719594,7.88,201.29,201.23,4.47]
[1759052721293,7.88,201.29,201.25,8.13]
[1759052721498,4.4688,201.3,201.25,8.13]
[1759052721799,7.88,201.29,201.25,8.13]
[1759052721991,4.4688,201.3,201.25,8.13]
[1759052722197,7.88,201.29,201.25,8.13]
[1759052722387,7.88,201.28,201.25,8.13]
[1759052722794,71.68131768,201.3,201.18,8.13]
[1759052723100,7.88,201.29,201.18,8.13]
[1759052723600,7.84,201.27,201.18,8.13]
[1759052723799,7.84,201.27,201.18,23.35646852]
[1759052723999,7.84,201.27,201.18,8.13]
[1759052724699,12.3098,201.25,201.18,12.6011]
[1759052724899,7.84,201.25,201.18,8.13]
[1759052725100,4.4689,201.29,201.18,71.72211768]
[1759052725294,7.84,201.3,201.2,7.91]
[1759052725794,4.469,201.29,201.23,4.47]
[1759052727502,4.4693,201.27,201.22,7.91]
[1759052727802,4.4693,201.27,201.21,4.4705]
[1759052727803,12.3093,201.27,201.21,7.91]
[1759052727999,7.84,201.27,201.17,7.91]
[1759052729105,69.5194,201.28,201.16,362.09027796]
[1759052729106,7.84,201.25,201.16,362.09027796]
[1759052729307,71.69541768,201.26,201.16,362.09027796]
[1759052729603,12.3109,201.2,201.16,0.79027796]
[1759052730194,12.3112,201.19,201.16,0.79027796]
[1759052730497,7.84,201.19,201.16,0.79027796]
[1759052730799,69.5296,201.25,201.16,8.70027796]
[1759052730800,7.84,201.25,201.16,8.70027796]
[1759052731006,12.3098,201.25,201.17,4.4714]
[1759052731204,12.3098,201.25,201.16,8.70027796]
[1759052731801,4.4694,201.27,201.17,7.91]
[1759052732198,2.16861768,201.31,201.17,7.91]
[1759052732398,7.84,201.3,201.17,7.91]
[1759052732602,121.22,201.33,201.19,4.4709]
[1759052732603,5.86025889,201.26,201.19,4.4709]
[1759052732803,13.70025889,201.26,201.19,4.4709]
[1759052733002,13.70025889,201.26,201.19,12.3809]
[1759052733599,7.84,201.25,201.17,4.4715]
[1759052733804,7.84,201.23,201.16,8.70027796]
[1759052735106,4.4707,201.21,201.16,8.70027796]
[1759052735312,7.84,201.2,201.16,8.70027796]
[1759052735704,7.84,201.2,201.16,0.79027796]
[1759052735904,7.84,201.2,201.17,7.91]
[1759052736100,4.4702,201.23,201.17,7.91]
[1759052736413,4.4702,201.23,201.16,8.70027796]
[1759052737608,4.4702,201.23,201.17,4.4713]
[1759052738105,4.4702,201.23,201.16,8.70027796]
[1759052738307,4.4705,201.22,201.16,8.70027796]
[1759052739408,4.4705,201.22,201.16,13.17187796]
[1759052739914,13.70055889,201.24,201.16,13.17187796]
[1759052740116,9.23055889,201.24,201.16,13.17187796]
[1759052741111,4.4703,201.23,201.17,4.4714]
[1759052744416,7.84,201.24,201.18,7.91]
[1759052744910,7.84,201.24,201.16,5.26187796]
[1759052745115,1.39055889,201.25,201.16,5.26187796]
[1759052745116,7.84,201.22,201.16,5.26187796]
[1759052746621,12.3105,201.22,201.16,5.26187796]
[1759052746821,7.84,201.22,201.16,0.79027796]
[1759052747621,69.5264,201.26,201.16,0.79027796]
[1759052747622,1.39055889,201.21,201.16,0.79027796]
[1759052748017,7.84,201.2,201.16,0.79027796]
[1759052748219,1.39055889,201.21,201.16,0.79027796]
[1759052748723,7.84,201.2,201.16,8.70027796]
[1759052749622,7.84,201.2,201.16,13.17187796]
[1759052750023,7.84,201.23,201.17,7.91]
[1759052751321,12.3103,201.23,201.18,4.4711]
[1759052751519,1.39055889,201.23,201.16,8.70027796]
[1759052751718,7.84,201.24,201.16,8.70027796]
[1759052752223,7.84,201.24,201.18,4.4712]
[1759052752224,12.3101,201.24,201.18,4.4712]
[1759052753121,7.84,201.22,201.18,12.3812]
[1759052753317,7.84,201.22,201.18,7.91]
[1759052753625,7.84,201.22,201.16,0.79027796]
[1759052753825,7.84,201.22,201.16,8.22027796]
[1759052754615,7.84,201.22,201.17,4.4714]
[1759052754924,7.84,201.22,201.18,7.43]
[1759052756029,7.65,201.22,201.16,0.79027796]
[1759052756428,12.1205,201.22,201.16,0.79027796]
[1759052756931,7.65,201.22,201.16,8.22027796]
[1759052758630,4.4703,201.23,201.18,4.4711]
[1759052758830,7.65,201.22,201.18,11.9011]
[1759052759026,4.4703,201.23,201.18,11.9011]
[1759052759326,7.65,201.22,201.18,11.9011]
[1759052760031,7.65,201.22,201.19,11.9009]
[1759052760733,7.65,201.22,201.19,7.43]
[1759052760931,1.39055889,201.22,201.16,0.79027796]
[1759052761230,7.65,201.18,201.16,0.79027796]
[1759052762533,1.39055889,201.19,201.16,0.79027796]
[1759052762732,7.65,201.18,201.16,0.79027796]
[1759052764336,7.65,201.18,201.15,4.4719]
[1759052764834,7.65,201.18,201.11,137.41630326]
[1759052765333,7.65,201.18,201.14,11.902]
[1759052765732,7.65,201.18,201.15,4.4718]
[1759052765934,7.65,201.18,201.15,11.9018]
[1759052766727,7.65,201.18,201.15,7.43]
[1759052769332,7.65,201.2,201.11,137.41630326]
[1759052769737,7.65,201.2,201.12,7.43]
[1759052769935,4.4714,201.18,201.13,4.4723]
[1759052770136,12.4214,201.18,201.14,8.17]
[1759052770337,12.4214,201.18,201.11,129.98630326]
[1759052770531,7.95,201.18,201.12,8.17]
[1759052770928,7.95,201.21,201.12,9.56055889]
[1759052771639,9.34055889,201.21,201.14,8.17]
[1759052772038,13.81125889,201.21,201.15,4.4719]
[1759052772637,4.4709,201.2,201.15,4.4719]
[1759052772840,7.95,201.19,201.15,12.6419]
[1759052773942,7.95,201.19,201.16,8.17]
[1759052783950,7.67,201.18,201.12,12.5426]
[1759052784551,9.06055889,201.18,201.12,12.5426]
[1759052784748,9.06055889,201.18,201.12,8.07]
[1759052785646,12.1418,201.16,201.12,8.07]
[1759052786250,7.67,201.16,201.12,8.07]
[1759052786550,5.86195889,201.18,201.12,8.07]
[1759052787544,5.86195889,201.18,201.12,12.5425]
[1759052788644,9.06055889,201.18,201.12,8.07]
[1759052789545,9.06055889,201.18,201.11,19.53900326]
[1759052789744,9.06055889,201.18,201.12,8.07]
[1759052791550,7.67,201.17,201.11,8.07]
[1759052792650,4.4718,201.16,201.11,8.07]
[1759052792853,4.4718,201.16,201.11,4.4727]
[1759052793049,7.67,201.16,201.1,8.07]
[1759052794552,7.67,201.16,201.12,4.4725]
[1759052794752,7.67,201.16,201.13,8.07]
[1759052795249,7.67,201.16,201.12,4.4725]
[1759052795451,7.67,201.16,201.13,8.07]
[1759052800066,7.67,201.15,201.13,8.07]
[1759052800263,7.67,201.15,201.11,8.07]
[1759052800468,7.67,201.15,201.1,19.26123758]
[1759052800968,7.67,201.15,201.12,8.07]
[1759052801861,12.1418,201.16,201.12,8.07]
[1759052802257,12.1418,201.16,201.11,4.4728]
[1759052802562,12.1418,201.16,201.12,8.07]
[1759052803064,7.67,201.16,201.1,8.07]
[1759052803273,7.67,201.26,201.13,8.07]
[1759052803473,2.17440501,201.27,201.13,8.07]
[1759052803474,7.67,201.24,201.13,8.07]
[1759052803765,12.1409,201.2,201.13,8.07]
[1759052804065,71.70430501,201.25,201.13,73.59]
[1759052804270,7.67,201.2,201.13,78.0623]
[1759052805162,2.17440501,201.22,201.13,73.59]
[1759052805365,7.67,201.2,201.1,8.07]
[1759052805566,7.67,201.2,201.06,0.86523042]
[1759052805567,7.67,201.18,201.06,8.07]
[1759052805768,7.67,201.15,201.06,8.07]
[1759052805966,7.67,201.13,201.06,8.07]
[1759052806669,12.1425,201.13,201.06,8.07]
[1759052807172,12.1425,201.13,201.06,12.5438]
[1759052807372,12.1425,201.13,201.06,8.07]
[1759052811373,7.67,201.13,201.03,13.42199544]
[1759052811568,7.67,201.14,201.03,134.66199544]
[1759052812071,7.67,201.14,201.03,149.61645566]
[1759052812272,69.5652,201.15,201.03,149.61645566]
[1759052812479,4.4732,201.1,201.04,4.4743]
[1759052812873,7.67,201.11,201.05,4.474]
[1759052813077,7.67,201.11,201.04,8.07]
[1759052814679,4.4725,201.13,201.06,4.4738]
[1759052814974,7.43,201.12,201.06,4.4738]
[1759052816982,11.9027,201.12,201.06,4.4738]
[1759052819783,11.9027,201.12,201.05,7.76]
[1759052820480,7.43,201.12,201.03,15.83195566]
[1759052820779,7.43,201.12,201.04,7.76]
[1759052821182,7.43,201.15,201.05,7.76]
[1759052822182,11.902,201.15,201.09,4.4732]
[1759052822376,2.17440501,201.16,201.07,7.76]